lending/lending_fUSD_20251111
["ID","MTS","AMOUNT","RATE_DAILY","PERIOD"]
[393643160,1762872640950,-90.38956742,0.00039099,20]
[393643161,1762872640959,-276.99747719,0.00039268,2]
[393643162,1762872640971,-723.00252281,0.00039268,2]
[393643163,1762872640981,-185.0,0.00039348,2]
[393643164,1762872640991,-910.61,0.00039358,14]
[393643165,1762872641001,-5202.51274832,0.00039358,4]
[393643166,1762872641011,-1317.0,0.00039368,2]
[393643167,1762872641020,-608.0,0.00039368,2]
[393643168,1762872641030,-3224.23,0.00039368,2]
[393643169,1762872641039,-574.0,0.00039368,2]
[393643170,1762872641049,-820.0,0.00039368,2]
[393643171,1762872641059,-1597.0,0.00039368,2]
[393643172,1762872641069,-837.504,0.00039368,2]
[393643173,1762872641078,-906.0,0.00039368,2]
[393643174,1762872641088,-1274.0,0.00039368,2]
[393643175,1762872641098,-813.0,0.00039368,2]
[393643176,1762872641107,-2143.0,0.00039368,2]
[393643177,1762872641117,-6664.0,0.00039368,2]
[393643178,1762872641127,-560.0,0.00039368,2]
[393643179,1762872641136,-6481.0,0.00039368,2]
[393643180,1762872641146,-2601.25637416,0.00039478,4]
[393643181,1762872641155,-7803.76912248,0.00039538,4]
[393643182,1762872641165,-75436.4348506,0.0003967,4]
[393643183,1762872641175,-2601.25637416,0.00039679,4]
[393643184,1762872641184,-500.0,0.00039689,2]
[393643185,1762872641197,-2000.0,0.00039689,2]
[393643186,1762872641207,-2000.0,0.00039689,2]
[393643187,1762872641218,-500.0,0.00039689,2]
[393643188,1762872641227,-307.20847251,0.00039689,2]
[393643189,1762872641237,-500.0,0.00039689,16]
[393643190,1762872641247,-910.61,0.00039689,14]
[393643191,1762872641257,-500.0,0.00039689,5]
[393643192,1762872641267,-500.0,0.00039689,3]
[393643193,1762872641277,-185.0,0.0003969,2]
[393643194,1762872641286,-2601.25637416,0.00039737,4]
[393643195,1762872641296,-5202.51274832,0.00039743,4]
[393643196,1762872641305,-157.36932523,0.00039792,2]
[393643197,1762872641315,-160.603281,0.00039801,2]
[393643198,1762872641325,-166.908883,0.00039801,2]
[393643199,1762872641335,-161.956926,0.00039801,2]
[393643200,1762872641345,-190.996592,0.00039801,2]
[393643201,1762872641354,-308.483177,0.00039801,2]
[393643202,1762872641364,-306.224424,0.00039801,2]
[393643203,1762872641374,-157.36932523,0.00039854,2]
[393643204,1762872641384,-5000.0,0.00039857,30]
[393643205,1762872641393,-768.12864948,0.0003987,2]
[393643206,1762872641403,-768.12864943,0.00039881,2]
[393643207,1762872641413,-768.12864943,0.00039892,2]
[393643208,1762872641423,-768.12864943,0.00039904,2]
[393643209,1762872641433,-600.0,0.00039906,15]
[393643210,1762872641444,-600.0,0.00039906,15]
[393643211,1762872641454,-600.0,0.00039906,15]
[393643212,1762872641464,-600.0,0.00039906,15]
[393643213,1762872641474,-600.0,0.00039906,15]
[393643214,1762872641483,-600.0,0.00039906,15]
[393643215,1762872641493,-600.0,0.00039906,15]
[393643216,1762872641503,-600.0,0.00039906,15]
[393643217,1762872641513,-600.0,0.00039906,15]
[393643218,1762872641523,-600.0,0.00039906,15]
[393643219,1762872641532,-768.12864943,0.00039915,2]
[393643220,1762872641541,-157.36932523,0.00039916,15]
[393643221,1762872641551,-6706.0,0.00039925,5]
[393643222,1762872641560,-500.0,0.00039925,2]
[393643223,1762872641569,-500.0,0.00039925,16]
[393643224,1762872641579,-500.0,0.00039925,5]
[393643225,1762872641588,-500.0,0.00039925,3]
[393643226,1762872641598,-768.12864943,0.00039926,2]
[393643227,1762872641607,-768.12864943,0.00039937,2]
[393643228,1762872641617,-575.83890767,0.00039938,2]
[393643229,1762872641626,-910.61,0.00039956,14]
[393643230,1762872641635,-910.61,0.00039956,14]
[393643231,1762872641644,-2000.0,0.00039966,2]
[393643232,1762872641653,-2000.0,0.00039966,2]
[393643233,1762872641663,-2000.0,0.00039966,2]
[393643234,1762872641673,-500.0,0.00039966,2]
[393643235,1762872641682,-500.0,0.00039966,16]
[393643236,1762872641693,-910.61,0.00039966,14]
[393643237,1762872641702,-500.0,0.00039966,5]
[393643238,1762872641833,-500.0,0.00039966,3]
[393643239,1762872641843,-420000.0,0.00039967,2]
[393643240,1762872641856,-910.61,0.00039974,14]
[393643241,1762872641868,-752.68349372,0.00039978,2]
[393643242,1762872641878,-254.22527129,0.00039978,2]
[393643243,1762872641887,-4348.54829192,0.00039978,2]
[393643244,1762872641899,-500.0,0.00039984,2]
[393643245,1762872641909,-500.0,0.00039984,16]
[393643246,1762872641919,-500.0,0.00039984,5]
[393643247,1762872641928,-500.0,0.00039984,3]
[393643248,1762872641939,-33287.216,0.00039985,2]
[393643249,1762872641949,-3006.4748,0.00039985,2]
[393643250,1762872641959,-1000.0,0.00039985,2]
[393643251,1762872641968,-219.64,0.0004,14]
[393643252,1762872641978,-500.0,0.00040036,2]
[393643253,1762872641987,-440.64156862,0.00040036,2]
[393643254,1762872641997,-152.37618865,0.00040036,20]
[393643255,1762872642006,-527.32961681,0.00040036,16]
[393643256,1762872642016,-500.0,0.00040036,5]
[393643257,1762872642026,-500.0,0.00040036,5]
[393643258,1762872642035,-500.0,0.00040036,5]
[393643259,1762872642045,-359.45049866,0.00040036,5]
[393643260,1762872642055,-522.91876279,0.00040036,3]
[393643261,1762872642064,-910.61,0.00040037,14]
[393643262,1762872642074,-910.61,0.00040037,14]
[393643263,1762872642083,-910.61,0.00040037,14]
[393643264,1762872642093,-910.61,0.00040037,14]
[393643265,1762872642102,-910.61,0.00040037,14]
[393643266,1762872642112,-910.61,0.00040037,14]
[393643267,1762872642122,-910.61,0.00040037,14]
[393643268,1762872642132,-910.61,0.00040037,14]
[393643269,1762872642141,-910.61,0.00040037,14]
[393643270,1762872642152,-910.61,0.00040037,14]
[393643271,1762872642161,-910.61,0.00040037,14]
[393643272,1762872642171,-910.61,0.00040037,14]
[393643273,1762872642180,-910.61,0.00040037,14]
[393643274,1762872642192,-910.61,0.00040037,14]
[393643275,1762872642202,-910.61,0.00040037,14]
[393643276,1762872642212,-910.61,0.00040037,14]
[393643277,1762872642222,-910.63086916,0.00040037,14]
[393643278,1762872642231,-17762.672238,0.00040067,2]
[393643279,1762872642241,-150.88,0.00040068,2]
[393643280,1762872642250,-500.0,0.00040069,2]
[393643281,1762872642260,-101288.94725497,0.00040078,29]
[393643282,1762872642269,-151.0,0.00040078,120]
[393643283,1762872642279,-151.0,0.00040078,120]
[393643284,1762872642289,-151.0,0.00040078,120]
[393643285,1762872642298,-151.0,0.00040078,120]
[393643286,1762872642308,-165.28374699,0.00040078,120]
[393643287,1762872642317,-2758461.61590482,0.00040078,7]
[393643304,1762872643425,-150.0,0.000399,60]
[393643305,1762872643435,-157.36932523,0.00039978,15]
[393643308,1762872643449,-10122.71627477,0.00040078,7]
[393643309,1762872643460,-604.0,0.00040078,7]
[393643310,1762872643566,-198202.87497689,0.00040078,7]
[393643311,1762872643597,-6742893.82849628,0.00040078,7]
[393643312,1762872643606,-7001.6836298,0.00040078,7]
[393643313,1762872643628,-4203.28050959,0.00040078,7]
[393643314,1762872643639,-356.24468002,0.00040078,7]
[393643315,1762872643650,-667.01589642,0.00040078,7]
[393643316,1762872643662,-257.425,0.00040078,7]
[393643334,1762872646416,-437.25000001,0.00040078,7]
[393643342,1762872646535,-37565.32483064,0.00040078,7]
[393643343,1762872646546,-4379.74062304,0.00040078,7]
[393643344,1762872646557,-1161.95994972,0.00040078,7]
[393643345,1762872646830,-2944.78484881,0.00040078,7]
[393643346,1762872646847,-2191.92534001,0.00040078,7]
[393643347,1762872646864,-5200.0,0.00040078,7]
[393643348,1762872646876,-2100.0,0.00040078,7]
[393643350,1762872646906,-825.84,0.00040078,7]
[393643351,1762872646917,-20770.20595699,0.00040078,7]
[393643352,1762872646931,-2723.30922553,0.00040078,7]
[393643496,1762873397095,1030.0,0.00022,30]
[393643498,1762873522316,180.2,0.00016922,2]
[393643500,1762873582003,200.0,0.0003,120]
[393643557,1762873831369,-388.2375,0.00029551,2]
[393643562,1762873831409,-775.64189899,0.00029551,2]
[393643567,1762873831447,-546.64951101,0.00029551,2]
[393643569,1762873831456,-126.73665636,0.000308,2]
[393643571,1762873831468,-4922.78121268,0.000308,2]
[393643573,1762873831479,-1831.84742485,0.000308,2]
[393643576,1762873831491,-1104.33870045,0.000308,2]
[393643578,1762873831500,-2840.03,0.0003103,2]
[393643580,1762873831510,-336.0,0.000314,120]
[393643582,1762873831519,-400.0,0.00031999,3]
[393643584,1762873831529,-330.1136337,0.00031999,2]
[393643589,1762873831574,-69.8863663,0.00031999,2]
[393643591,1762873831584,-373.9936335,0.00031999,3]
[393643594,1762873831615,-1226.0063665,0.00031999,3]
[393643595,1762873831624,-177.02177303,0.00032,120]
[393643596,1762873831634,-941.88580585,0.00032,120]
[393643597,1762873831643,-277.69780721,0.00032,120]
[393643598,1762873831653,-189.09595777,0.00032,120]
[393643599,1762873831662,-200.0,0.00032,120]
[393643600,1762873831671,-195.0,0.00032506,120]
[393643601,1762873831681,-250.0,0.00032506,2]
[393643602,1762873831691,-251.96339465,0.00032506,120]
[393643603,1762873831700,-512.78,0.00032784,2]
[393643605,1762873831709,-200.0,0.0003289,2]
[393643606,1762873831719,-629.51525607,0.00032948,5]
[393643607,1762873831728,-900.0,0.00032998,2]
[393643609,1762873831738,-150.99,0.00032999,2]
[393643611,1762873831747,-8420.01,0.00032999,2]
[393643613,1762873831756,-9999.99,0.00032999,2]
[393643615,1762873831765,-499.99,0.00032999,2]
[393643617,1762873831775,-177.02177303,0.00033,120]
[393643619,1762873831784,-941.88580585,0.00033,120]
[393643621,1762873831794,-277.69780721,0.00033,120]
[393643623,1762873831803,-189.09595777,0.00033,120]
[393643625,1762873831812,-500.0,0.00033,5]
[393643627,1762873831821,-166.38745637,0.00033595,2]
[393643629,1762873831830,-389.27,0.00033595,2]
[393643631,1762873831839,-18615.47,0.00033596,2]
[393643633,1762873831848,-4487.2248387,0.00033596,2]
[393643637,1762873831861,-2947.80480008,0.00033596,2]
[393643640,1762873831873,-255.59438564,0.00033596,2]
[393643644,1762873831884,-6684.36597558,0.00033596,2]
[393643647,1762873831894,-9999.99,0.00033596,2]
[393643649,1762873831903,-1000.0,0.00033757,2]
[393643651,1762873831915,-805.0,0.00033769,30]
[393643654,1762873831925,-8072.82998408,0.00033769,2]
[393643657,1762873831937,-1578.61284584,0.00033769,2]
[393643660,1762873831948,-1234.27201545,0.00033769,2]
[393643664,1762873831959,-1710.69590596,0.00033769,2]
[393643673,1762873837547,-10185.69924867,0.00033769,2]
[393643674,1762873837558,-1669.3,0.00033824,2]
[393643675,1762873837567,-941.88580585,0.000339,120]
[393643676,1762873837577,-277.69780721,0.000339,120]
[393643677,1762873837586,-1333.72,0.00033909,2]
[393643678,1762873837596,-200.0,0.00034,120]
[393643679,1762873837605,-206.14930198,0.00034168,120]
[393643680,1762873837616,-206.33121689,0.00034168,120]
[393643681,1762873837626,-420.0,0.00034417,3]
[393643682,1762873837635,-320.0,0.00034417,2]
[393643683,1762873837645,-1280.0,0.00034559,3]
[393643684,1762873837654,-478.44322026,0.00034625,2]
[393643685,1762873837664,-12334.3327,0.00034718,2]
[393643687,1762873837678,-2500.0,0.00034808,2]
[393643688,1762873837687,-917.15827427,0.00034808,2]
[393643690,1762873837697,-3120.34002239,0.00034808,2]
[393643691,1762873837707,-751.61226014,0.00034808,2]
[393643692,1762873837716,-327.18682053,0.00034815,15]
[393643693,1762873837726,-1000.0,0.00034818,2]
[393643694,1762873837735,-1053.0202,0.00034818,2]
[393643695,1762873837746,-6298.0195,0.00034818,2]
[393643696,1762873837755,-151.0,0.00034897,2]
[393643697,1762873837766,-151.0,0.00034897,2]
[393643698,1762873837776,-151.0,0.00034897,2]
[393643699,1762873837786,-151.0,0.00034897,2]
[393643700,1762873837796,-151.0,0.00034897,2]
[393643701,1762873837805,-263.62259856,0.00034897,2]
[393643702,1762873837815,-150.79113814,0.00034897,2]
[393643703,1762873837824,-152.29667682,0.00034897,2]
[393643704,1762873837834,-152.75970822,0.00034897,2]
[393643705,1762873837843,-164.39397088,0.00034897,2]
[393643706,1762873837852,-152.89675062,0.00034897,2]
[393643707,1762873837867,-151.55105583,0.00034897,2]
[393643708,1762873837877,-155.38594985,0.00034897,2]
[393643709,1762873837887,-150.53798323,0.00034897,2]
[393643710,1762873837896,-205.34981725,0.00034897,2]
[393643711,1762873837906,-155.41224067,0.00034897,2]
[393643712,1762873837916,-153.29168327,0.00034897,2]
[393643713,1762873837926,-150.0,0.00034897,2]
[393643714,1762873837935,-150.0,0.00034897,2]
[393643715,1762873837945,-500.0,0.00034897,2]
[393643716,1762873837954,-150.0,0.00034897,2]
[393643717,1762873837964,-10000.0,0.000349,14]
[393643718,1762873837973,-1790.48,0.000349,40]
[393643719,1762873837982,-455.662,0.000349,40]
[393643720,1762873837993,-250.0,0.000349,14]
[393643721,1762873838003,-250.0,0.000349,14]
[393643722,1762873838012,-250.0,0.000349,14]
[393643723,1762873838021,-250.0,0.000349,14]
[393643724,1762873838031,-250.0,0.000349,14]
[393643725,1762873838041,-250.0,0.000349,14]
[393643726,1762873838051,-250.0,0.000349,14]
[393643727,1762873838065,-250.0,0.000349,14]
[393643728,1762873838074,-250.0,0.000349,14]
[393643729,1762873838084,-250.0,0.000349,14]
[393643730,1762873838094,-250.0,0.000349,14]
[393643731,1762873838104,-250.0,0.000349,14]
[393643732,1762873838115,-250.0,0.000349,14]
[393643733,1762873838125,-250.0,0.000349,14]
[393643734,1762873838135,-250.0,0.000349,14]
[393643735,1762873838145,-250.0,0.000349,14]
[393643736,1762873838155,-250.0,0.000349,14]
[393643737,1762873838165,-250.0,0.000349,14]
[393643738,1762873838174,-250.0,0.000349,14]
[393643739,1762873838183,-250.0,0.000349,14]
[393643740,1762873838193,-250.0,0.000349,14]
[393643741,1762873838202,-250.0,0.000349,14]
[393643742,1762873838212,-270.6,0.000349,14]
[393643743,1762873838222,-500.0,0.00034907,7]
[393643744,1762873838231,-500.0,0.00034907,7]
[393643745,1762873838241,-500.0,0.00034907,7]
[393643746,1762873838253,-500.0,0.00034907,7]
[393643747,1762873838266,-500.0,0.00034907,7]
[393643748,1762873838276,-392.24589828,0.00034907,7]
[393643749,1762873838287,-500.0,0.00034907,7]
[393643750,1762873838296,-500.0,0.00034907,7]
[393643751,1762873838306,-500.0,0.00034907,7]
[393643752,1762873838316,-500.0,0.00034907,7]
[393643753,1762873838328,-500.0,0.00034907,7]
[393643754,1762873838338,-169.95961824,0.00034907,7]
[393643755,1762873838348,-408.15,0.00034907,14]
[393643756,1762873838358,-29962.68964656,0.00034908,3]
[393643757,1762873838371,-5420.34020399,0.00034908,3]
[393643758,1762873838384,-40526.68719925,0.00034908,3]
[393643760,1762873839543,-91045.89930982,0.00034908,3]
[393643761,1762873840085,-3695.0,0.00034908,3]
[393643762,1762873840097,-777.12919889,0.00034908,3]
[393643763,1762873840110,-11070.0,0.00034908,3]
[393643764,1762873840228,-4472.9798341,0.00034908,3]
[393643765,1762873840240,-24774.57439239,0.00034908,3]
[393643766,1762873840252,-113300.625732,0.00034908,3]
[393643767,1762873840263,-478.44322026,0.00034908,3]
[393643768,1762873840273,-14162.5782165,0.00034915,3]
[393643769,1762873840286,-500.0,0.00034917,2]
[393643770,1762873840295,-500.0,0.00034917,2]
[393643771,1762873840305,-1102.88181861,0.00034917,30]
[393643772,1762873840315,-500.0,0.00034917,2]
[393643773,1762873840328,-500.0,0.00034917,2]
[393643774,1762873840337,-500.0,0.00034917,20]
[393643775,1762873840348,-500.0,0.00034917,7]
[393643776,1762873840359,-500.0,0.00034917,7]
[393643777,1762873840369,-500.0,0.00034917,20]
[393643778,1762873840378,-1055.57119134,0.00034917,30]
[393643779,1762873840388,-500.0,0.00034917,2]
[393643780,1762873840398,-500.0,0.00034917,2]
[393643781,1762873840408,-522.47521665,0.00034917,20]
[393643782,1762873840418,-420000.0,0.00034918,2]
[393643783,1762873840427,-61404.88451836,0.00034918,2]
[393643784,1762873840438,-15124.6642704,0.00034925,3]
[393643785,1762873840448,-500.0,0.00034973,5]
[393643787,1762873840458,-618.46923793,0.00034973,5]
[393643788,1762873840468,-510.09371407,0.00034973,5]
[393643789,1762873840478,-408.19969387,0.00034973,3]
[393643790,1762873840489,-500.0,0.00034973,5]
[393643791,1762873840499,-500.0,0.00034973,5]
[393643792,1762873840509,-500.0,0.00034973,5]
[393643793,1762873840520,-500.0,0.00034973,5]
[393643794,1762873840531,-5355.0,0.00034987,5]
[393643795,1762873840542,-15124.6642704,0.00034988,3]
[393643796,1762873840552,-941.88580585,0.00035,120]
[393643797,1762873840563,-277.69780721,0.00035,120]
[393643798,1762873840573,-500.0,0.00035007,7]
[393643799,1762873840583,-265.27232515,0.00035007,7]
[393643800,1762873840594,-150.0,0.00035034,2]
[393643801,1762873840604,-150.0,0.00035034,2]
[393643802,1762873840615,-207.84083914,0.00035171,2]
[393643803,1762873840624,-202.20130646,0.00035171,2]
[393643804,1762873840634,-408.15,0.00035181,14]
[393643805,1762873840643,-14162.5782165,0.00035325,3]
[393643806,1762873840652,-15124.6642704,0.00035335,3]
[393643807,1762873840662,-646.62,0.00035345,2]
[393643809,1762873840681,-917.15827425,0.00035387,2]
[393643811,1762873840691,-3120.34002238,0.00035387,2]
[393643812,1762873840701,-327.18682046,0.00035394,15]
[393643813,1762873840710,-408.15,0.00035455,14]
[393643814,1762873840720,-500.0,0.00035507,10]
[393643815,1762873840730,-150.0,0.00035507,10]
[393643816,1762873840740,-620.64256179,0.00035521,5]
[393643817,1762873840750,-1000.0,0.00035521,5]
[393643818,1762873840760,-1000.0,0.00035521,5]
[393643819,1762873840770,-751.61226008,0.00035553,2]
[393643820,1762873840779,-500.0,0.00035616,30]
[393643821,1762873840789,-500.0,0.00035644,10]
[393643822,1762873840799,-150.0,0.00035644,10]
[393643823,1762873840809,-14162.5782165,0.00035655,3]
[393643824,1762873840819,-15124.6642704,0.00035665,3]
[393643825,1762873840829,-160.90585572,0.00035673,5]
[393643826,1762873840838,-15124.6642704,0.00035675,3]
[393643827,1762873840848,-408.15,0.00035729,14]
[393643828,1762873840859,-384.06432477,0.00035742,2]
[393643829,1762873841083,-500.0,0.00035781,10]
[393643830,1762873841093,-150.0,0.00035781,10]
[393643831,1762873841103,-28325.156433,0.00035803,3]
[393643832,1762873841115,-60498.6570814,0.00035812,3]
[393643833,1762873841125,-151.0,0.00035829,14]
[393643834,1762873841137,-500.0,0.00035832,7]
[393643835,1762873841146,-500.0,0.00035832,2]
[393643836,1762873841156,-155788.360381,0.00035832,3]
[393643837,1762873841166,-263.95634355,0.00035841,7]
[393643838,1762873841177,-500.0,0.00035841,2]
[393643839,1762873841187,-285198.7,0.00035842,2]
[393643840,1762873841196,-2751.0,0.00035842,120]
[393643841,1762873841205,-5000.0,0.00035842,2]
[393643842,1762873841215,-150.0,0.00035873,5]
[393643843,1762873841225,-500.0,0.00035873,5]
[393643844,1762873841235,-500.0,0.00035873,5]
[393643845,1762873841245,-500.0,0.00035873,5]
[393643846,1762873841259,-500.0,0.00035873,5]
[393643847,1762873841268,-500.26491085,0.00035873,5]
[393643848,1762873841278,-500.0,0.0003589,30]
[393643849,1762873841288,-164.72,0.000359,14]
[393643850,1762873841299,-924.37,0.000359,30]
[393643851,1762873841309,-500.0,0.00035918,10]
[393643852,1762873841318,-281.98138219,0.00035918,10]
[393643853,1762873841329,-917.15827425,0.00035967,2]
[393643854,1762873841339,-3120.34002238,0.00035967,2]
[393643855,1762873841349,-327.18682046,0.00035973,15]
[393643856,1762873841361,-941.88580585,0.00036,120]
[393643857,1762873841371,-277.69780721,0.00036,120]
[393643858,1762873841381,-200.0,0.00036,120]
[393643859,1762873841391,-478.44322026,0.00036,120]
[393643860,1762873841401,-408.18360344,0.00036003,14]
[393643861,1762873841411,-500.0,0.00036055,10]
[393643862,1762873841421,-554.1976215,0.00036068,5]
[393643863,1762873841431,-478.44322026,0.00036145,30]
[393643864,1762873841441,-1000.0,0.00036145,30]
[393643865,1762873841451,-1000.0,0.00036145,30]
[393643866,1762873841460,-1000.0,0.00036145,30]
[393643867,1762873841471,-1000.0,0.00036145,30]
[393643868,1762873841480,-1000.0,0.00036145,30]
[393643869,1762873841490,-1000.0,0.00036145,30]
[393643870,1762873841500,-1096.46520902,0.00036145,30]
[393643871,1762873841511,-1101.97494401,0.00036145,30]
[393643872,1762873841521,-1099.63762039,0.00036145,30]
[393643873,1762873841531,-1000.0,0.00036145,30]
[393643874,1762873841540,-1245.36409428,0.00036145,30]
[393643875,1762873841550,-1000.0,0.00036145,30]
[393643876,1762873841560,-564.55,0.00036164,30]
[393643877,1762873841570,-500.0,0.00036168,2]
[393643878,1762873841579,-999.0,0.00036168,120]
[393643879,1762873841590,-2441.82,0.00036169,2]
[393643880,1762873841600,-500.0,0.00036192,10]
[393643881,1762873841611,-655.85,0.00036231,2]
[393643882,1762873841621,-356.7102888,0.00036267,2]
[393643883,1762873841630,-751.61226008,0.00036298,2]
[393643884,1762873841640,-500.0,0.00036329,10]
[393643885,1762873841650,-2498.62,0.00036371,2]
[393643886,1762873841660,-14162.5782165,0.00036387,3]
[393643887,1762873841670,-5000.0,0.00036397,2]
[393643888,1762873841680,-250.0,0.00036421,5]
[393643889,1762873841690,-178.3008851,0.00036421,5]
[393643890,1762873841699,-1002.32902604,0.00036421,5]
[393643891,1762873841708,-502.29417655,0.00036421,5]
[393643892,1762873841718,-384.06432471,0.00036455,2]
[393643893,1762873841727,-500.0,0.00036466,10]
[393643894,1762873841736,-917.15827425,0.00036546,2]
[393643895,1762873841746,-3120.34002238,0.00036546,2]
[393643896,1762873841756,-327.18682046,0.00036551,15]
[393643897,1762873841766,-431.61479719,0.00036603,10]
[393643898,1762873841780,-17751.91,0.00036656,2]
[393643899,1762873841789,-180.66875269,0.00036783,17]
[393643900,1762873841799,-14162.5782165,0.0003689,4]
[393643901,1762873841809,-10000.0,0.000369,20]
[393643902,1762873841818,-28325.156433,0.00036938,4]
[393643903,1762873841827,-1055.57119134,0.00036947,30]
[393643904,1762873841836,-74303.59,0.00036948,2]
[393643905,1762873841845,-200.0,0.00036948,2]
[393643906,1762873841855,-250.0,0.00036948,2]
[393643907,1762873841866,-366.0,0.00036966,120]
[393643908,1762873841876,-450.61887653,0.00036968,5]
[393643909,1762873841886,-150.33339269,0.00036973,5]
[393643910,1762873841895,-14162.5782165,0.00036991,4]
[393643911,1762873841905,-5087.0,0.00037,2]
[393643912,1762873841915,-365.0,0.00037001,7]
[393643913,1762873841924,-544.0,0.00037024,120]
[393643914,1762873841934,-751.61226008,0.00037043,2]
[393643915,1762873841944,-365.0,0.00037052,2]
[393643916,1762873841953,-906.0,0.00037088,2]
[393643917,1762873841963,-6664.0,0.00037088,2]
[393643918,1762873841973,-2143.0,0.00037088,2]
[393643919,1762873841983,-6481.0,0.00037088,2]
[393643920,1762873841993,-231.095,0.00037088,2]
[393643921,1762873842002,-924.37,0.000371,30]
[393643922,1762873842014,-917.15827425,0.00037125,2]
[393643923,1762873842024,-3120.34002238,0.00037125,2]
[393643924,1762873842034,-327.18682046,0.0003713,15]
[393643925,1762873842044,-300.0,0.00037151,12]
[393643926,1762873842054,-384.06432471,0.00037169,2]
[393643927,1762873842064,-186.29272794,0.000372,120]
[393643928,1762873842074,-512.78,0.00037306,2]
[393643929,1762873842083,-365.0,0.0003732,2]
[393643930,1762873842092,-366.0,0.0003735,7]
[393643931,1762873842102,-155.48,0.00037379,60]
[393643932,1762873842114,-155.48,0.00037479,60]
[393643933,1762873842123,-155.48,0.00037579,60]
[393643934,1762873842132,-211.15,0.00037598,60]
[393643935,1762873842141,-155.48,0.00037679,60]
[393643936,1762873842151,-917.15827425,0.00037705,2]
[393643937,1762873842161,-3120.34002238,0.00037705,2]
[393643938,1762873842170,-327.18682046,0.00037709,15]
[393643939,1762873842180,-500.84602624,0.00037773,5]
[393643940,1762873842189,-500.0,0.00037773,5]
[393643941,1762873842199,-155.48,0.00037779,60]
[393643942,1762873842208,-751.61226008,0.00037789,2]
[393643944,1762873842217,-33287.216,0.0003779,2]
[393643946,1762873842227,-1000.0,0.0003779,2]
[393643948,1762873842236,-206.14930198,0.00037822,120]
[393643950,1762873842247,-365.0,0.0003786,2]
[393643952,1762873842259,-365.0,0.00037865,2]
[393643955,1762873842269,-155.48,0.00037879,60]
[393643957,1762873842278,-384.06432471,0.00037882,2]
[393643958,1762873842288,-365.0,0.00037969,2]
[393643960,1762873842298,-500.0,0.00037973,2]
[393643962,1762873842308,-155.48,0.00037979,60]
[393643964,1762873842317,-243.43683837,0.00038,120]
[393643965,1762873842328,-200.0,0.00038,120]
[393643966,1762873842337,-284.85,0.0003806,2]
[393643967,1762873842347,-155.48,0.00038079,60]
[393643968,1762873842356,-1000.0,0.000381,7]
[393643969,1762873842368,-365.0,0.00038123,2]
[393643970,1762873842380,-155.48,0.00038179,60]
[393643971,1762873842389,-500.0,0.0003823,2]
[393643972,1762873842399,-2041.92,0.00038231,2]
[393643973,1762873842408,-155.48,0.00038279,60]
[393643974,1762873842418,-917.15827425,0.00038284,2]
[393643975,1762873842428,-3120.34002238,0.00038284,2]
[393643976,1762873842438,-327.18682046,0.00038288,15]
[393643977,1762873842447,-924.37,0.000383,30]
[393643978,1762873842457,-500.0,0.00038321,5]
[393643979,1762873842467,-150.0,0.00038338,120]
[393643980,1762873842477,-150.0,0.00038356,120]
[393643981,1762873842486,-229.72271156,0.00038356,2]
[393643982,1762873842496,-1000.0,0.00038356,120]
[393643983,1762873842505,-1000.0,0.00038356,120]
[393643984,1762873842515,-1000.0,0.00038356,120]
[393643985,1762873842524,-1000.0,0.00038356,120]
[393643987,1762873842534,-588.89694481,0.00038356,120]
[393643990,1762873842543,-500.0,0.00038356,20]